lending/lending_fUSD_20240110
["ID","MTS","AMOUNT","RATE_DAILY","PERIOD"]
[311046560,1704889845430,-500.0,0.00030136,2]
[311046562,1704889845439,-500.0,0.00030136,2]
[311046564,1704889845449,-600.55523856,0.00030136,2]
[311046566,1704889845458,-500.0,0.00030136,2]
[311046568,1704889845468,-619.57,0.00030136,2]
[311046570,1704889845477,-504.42145874,0.00030136,2]
[311046572,1704889845486,-500.0,0.00030136,2]
[311046574,1704889845496,-1080.53,0.00030136,2]
[311046576,1704889845506,-500.0,0.00030136,2]
[311046578,1704889845515,-500.0,0.00030136,2]
[311046580,1704889845524,-797.89,0.00030136,2]
[311046582,1704889845534,-776.49,0.00030136,2]
[311046585,1704889845548,-1013.63513528,0.00030136,7]
[311046587,1704889845561,-503.53953619,0.00030136,2]
[311046589,1704889845571,-500.0,0.00030136,2]
[311046591,1704889845581,-693.28,0.00030136,2]
[311046593,1704889845591,-533.65354588,0.00030136,2]
[311046596,1704889845601,-1018.85,0.00030136,2]
[311046598,1704889845611,-500.0,0.00030136,2]
[311046600,1704889845623,-500.0,0.00030136,2]
[311046602,1704889845635,-500.0,0.00030136,2]
[311046604,1704889845645,-1421.98,0.00030136,2]
[311046606,1704889845655,-1000.0,0.00030136,2]
[311046608,1704889845665,-500.0,0.00030136,2]
[311046610,1704889845675,-1059.23,0.00030136,2]
[311046612,1704889845686,-1078.63,0.00030136,2]
[311046614,1704889845695,-1239.08,0.00030136,2]
[311046617,1704889845706,-271.14858443,0.00030136,2]
[311046619,1704889845715,-621.11,0.00030136,2]
[311046621,1704889845725,-500.0,0.00030136,2]
[311046623,1704889845737,-500.0,0.00030136,2]
[311046625,1704889845747,-1609.93,0.00030136,2]
[311046627,1704889845757,-970.94,0.00030136,2]
[311046629,1704889845766,-500.0,0.00030136,2]
[311046631,1704889845776,-628.13,0.00030136,2]
[311046633,1704889845786,-500.0,0.00030136,2]
[311046635,1704889845796,-657.91,0.00030136,2]
[311046637,1704889845806,-500.0,0.00030136,2]
[311046639,1704889845816,-500.0,0.00030136,2]
[311046641,1704889845826,-500.0,0.00030136,2]
[311046643,1704889845836,-500.0,0.00030136,2]
[311046646,1704889845846,-520.49109013,0.00030136,2]
[311046648,1704889845856,-500.0,0.00030136,2]
[311046650,1704889845866,-500.0,0.00030136,2]
[311046652,1704889845879,-875.35,0.00030136,2]
[311046654,1704889845889,-500.0,0.00030136,2]
[311046656,1704889845898,-500.0,0.00030136,2]
[311046659,1704889845908,-500.0,0.00030136,2]
[311046661,1704889845918,-500.0,0.00030136,2]
[311046663,1704889845928,-500.0,0.00030136,2]
[311046665,1704889845938,-300.0,0.00030136,2]
[311046667,1704889845947,-1080.66,0.00030136,2]
[311046669,1704889845957,-1260.41,0.00030136,2]
[311046671,1704889845966,-500.0,0.00030136,2]
[311046673,1704889845976,-331.23198919,0.00030136,2]
[311046676,1704889845986,-500.0,0.00030136,2]
[311046678,1704889845995,-609.5,0.00030136,2]
[311046680,1704889846005,-1394.51,0.00030136,2]
[311046682,1704889846014,-500.0,0.00030136,2]
[311046685,1704889846024,-500.0,0.00030136,2]
[311046687,1704889846033,-500.0,0.00030136,2]
[311046689,1704889846043,-1329.05,0.00030136,2]
[311046691,1704889846052,-500.0,0.00030136,2]
[311046693,1704889846062,-1122.75,0.00030136,2]
[311046695,1704889846072,-500.0,0.00030136,2]
[311046697,1704889846082,-500.0,0.00030136,2]
[311046699,1704889846092,-500.0,0.00030136,2]
[311046701,1704889846102,-500.0,0.00030136,2]
[311046703,1704889846111,-611.47,0.00030136,2]
[311046705,1704889846121,-500.0,0.00030136,2]
[311046709,1704889846134,-607.16206912,0.00030136,2]
[311046713,1704889846143,-500.0,0.00030136,2]
[311046717,1704889846153,-500.0,0.00030136,2]
[311046721,1704889846163,-1143.2,0.00030136,2]
[311046726,1704889846172,-500.0,0.00030136,2]
[311046729,1704889846182,-500.0,0.00030136,2]
[311046732,1704889846191,-943.81,0.00030136,2]
[311046735,1704889846200,-500.0,0.00030136,2]
[311046738,1704889846209,-676.64,0.00030136,2]
[311046740,1704889846220,-963.94,0.00030136,2]
[311046744,1704889846234,-587.29,0.00030136,2]
[311046748,1704889846244,-500.0,0.00030136,2]
[311046751,1704889846254,-500.0,0.00030136,2]
[311046754,1704889846263,-500.0,0.00030136,2]
[311046757,1704889846273,-500.0,0.00030136,2]
[311046760,1704889846288,-500.0,0.00030136,2]
[311046763,1704889846297,-500.0,0.00030136,2]
[311046767,1704889846313,-181.42937293,0.00030136,2]
[311046770,1704889846322,-500.0,0.00030136,2]
[311046773,1704889846334,-500.0,0.00030136,2]
[311046776,1704889846343,-500.0,0.00030136,2]
[311046778,1704889846352,-500.0,0.00030136,2]
[311046781,1704889846362,-509.9072813,0.00030136,2]
[311046784,1704889846371,-500.0,0.00030136,2]
[311046787,1704889846385,-1081.53,0.00030136,2]
[311046790,1704889846394,-738.26,0.00030136,2]
[311046793,1704889846403,-500.0,0.00030136,2]
[311046796,1704889846413,-1971.18,0.00030136,2]
[311046799,1704889846422,-753.11,0.00030136,2]
[311046802,1704889846435,-713.67,0.00030136,2]
[311046807,1704889846446,-500.0,0.00030136,2]
[311046810,1704889846456,-500.0,0.00030136,2]
[311046813,1704889846466,-500.0,0.00030136,2]
[311046815,1704889846476,-500.0,0.00030136,2]
[311046817,1704889846486,-592.26,0.00030136,2]
[311046819,1704889846496,-500.0,0.00030136,2]
[311046821,1704889846506,-500.0,0.00030136,2]
[311046823,1704889846515,-876.77,0.00030136,2]
[311046826,1704889846525,-1205.6,0.00030136,2]
[311046829,1704889846536,-1405.05,0.00030136,2]
[311046832,1704889846545,-786.11,0.00030136,2]
[311046835,1704889846555,-223.54666392,0.00030136,2]
[311046838,1704889846565,-500.0,0.00030136,2]
[311046841,1704889846575,-505.97460357,0.00030136,2]
[311046844,1704889846585,-1357.22,0.00030136,2]
[311046847,1704889846596,-500.0,0.00030136,2]
[311046850,1704889846605,-500.0,0.00030136,2]
[311046853,1704889846615,-500.0,0.00030136,2]
[311046856,1704889846633,-500.0,0.00030136,2]
[311046859,1704889846643,-817.66,0.00030136,2]
[311046876,1704889846654,-500.0,0.00030136,2]
[311046879,1704889846792,-500.0,0.00030136,2]
[311046881,1704889846802,-500.0,0.00030136,2]
[311046883,1704889846811,-500.0,0.00030136,2]
[311046885,1704889846820,-515.91,0.00030136,2]
[311046887,1704889846829,-503.13980784,0.00030136,2]
[311046889,1704889846838,-590.91,0.00030136,2]
[311046891,1704889846848,-500.0,0.00030136,2]
[311046893,1704889846857,-1328.98,0.00030136,2]
[311046895,1704889846866,-500.0,0.00030136,2]
[311046897,1704889846880,-564.69,0.00030136,2]
[311046898,1704889846889,-664.71,0.00030136,2]
[311046901,1704889846899,-1818.56,0.00030136,2]
[311046903,1704889846909,-500.0,0.00030136,2]
[311046905,1704889846918,-500.0,0.00030136,2]
[311046907,1704889846927,-500.0,0.00030136,2]
[311046908,1704889846937,-1359.78,0.00030136,2]
[311046909,1704889846946,-500.0,0.00030136,2]
[311046910,1704889846955,-500.0,0.00030136,2]
[311046911,1704889846965,-500.0,0.00030136,2]
[311046912,1704889846975,-500.0,0.00030136,2]
[311046913,1704889846985,-1646.24,0.00030136,2]
[311046914,1704889846995,-500.0,0.00030136,2]
[311046915,1704889847006,-1205.85,0.00030136,2]
[311046916,1704889847017,-914.4,0.00030136,2]
[311046917,1704889847028,-500.0,0.00030136,2]
[311046918,1704889847038,-999.71,0.00030136,2]
[311046919,1704889847049,-1697.06,0.00030136,2]
[311046920,1704889847059,-500.0,0.00030136,2]
[311046921,1704889847069,-918.01,0.00030136,2]
[311046922,1704889847079,-500.0,0.00030136,2]
[311046924,1704889847089,-500.0,0.00030136,2]
[311046926,1704889847098,-500.0,0.00030136,2]
[311046928,1704889847108,-500.0,0.00030136,2]
[311046930,1704889847117,-787.03,0.00030136,2]
[311046932,1704889847130,-852.46,0.00030136,2]
[311046934,1704889847140,-500.0,0.00030136,2]
[311046936,1704889847149,-500.0,0.00030136,2]
[311046938,1704889847159,-500.0,0.00030136,2]
[311046940,1704889847168,-504.79,0.00030136,2]
[311046942,1704889847177,-532.75,0.00030136,2]
[311046943,1704889847186,-500.0,0.00030136,2]
[311046946,1704889847196,-500.0,0.00030136,7]
[311046948,1704889847206,-500.0,0.00030136,2]
[311046950,1704889847215,-500.0,0.00030136,2]
[311046951,1704889847224,-1171.44,0.00030136,2]
[311046953,1704889847233,-502.06898603,0.00030136,2]
[311046955,1704889847242,-1661.84,0.00030136,2]
[311046957,1704889847252,-500.0,0.00030136,2]
[311046959,1704889847261,-500.0,0.00030136,2]
[311046962,1704889847271,-742.53,0.00030136,2]
[311046964,1704889847281,-2042.32,0.00030136,2]
[311046965,1704889847290,-500.0,0.00030136,2]
[311046966,1704889847299,-500.0,0.00030136,2]
[311046967,1704889847309,-800.82,0.00030136,2]
[311046968,1704889847318,-834.09,0.00030136,2]
[311046969,1704889847328,-518.43,0.00030136,2]
[311046970,1704889847337,-745.31,0.00030136,2]
[311046971,1704889847347,-985.47,0.00030136,2]
[311046972,1704889847357,-500.0,0.00030136,2]
[311046973,1704889847366,-500.0,0.00030136,2]
[311046974,1704889847380,-500.0,0.00030136,2]
[311046975,1704889847389,-733.93,0.00030136,2]
[311046976,1704889847399,-500.0,0.00030136,2]
[311046978,1704889847408,-500.0,0.00030136,2]
[311046980,1704889847417,-765.43,0.00030136,2]
[311046982,1704889847427,-500.0,0.00030136,2]
[311046984,1704889847436,-665.47,0.00030136,2]
[311046986,1704889847446,-591.35,0.00030136,2]
[311046988,1704889847455,-500.0,0.00030136,2]
[311046990,1704889847464,-499.03972446,0.00030136,2]
[311046992,1704889847474,-1028.14,0.00030136,2]
[311046994,1704889847483,-1244.37,0.00030136,2]
[311046996,1704889847492,-500.0,0.00030136,2]
[311046998,1704889847501,-928.42,0.00030136,2]
[311047000,1704889847510,-1050.7,0.00030136,2]
[311047002,1704889847520,-500.0,0.00030136,2]
[311047004,1704889847529,-500.0,0.00030136,2]
[311047006,1704889847539,-500.0,0.00030136,2]
[311047008,1704889847549,-1005.39,0.00030136,2]
[311047010,1704889847558,-999.28,0.00030136,2]
[311047012,1704889847567,-892.35,0.00030136,4]
[311047015,1704889847579,-500.0,0.00030136,2]
[311047016,1704889847588,-500.0,0.00030136,2]
[311047018,1704889847598,-500.0,0.00030136,2]
[311047021,1704889847607,-500.0,0.00030136,2]
[311047023,1704889847616,-500.0,0.00030136,2]
[311047025,1704889847628,-425.01229042,0.00030136,2]
[311047027,1704889847638,-850.5,0.00030136,2]
[311047029,1704889847648,-913.67,0.00030136,2]
[311047031,1704889847657,-1307.7,0.00030136,2]
[311047033,1704889847666,-1840.01,0.00030136,2]
[311047035,1704889847678,-905.12,0.00030136,2]
[311047037,1704889847687,-1163.6,0.00030136,2]
[311047039,1704889847697,-627.63,0.00030136,2]
[311047041,1704889847706,-500.0,0.00030136,2]
[311047043,1704889847717,-603.43,0.00030136,2]
[311047045,1704889847726,-1883.78,0.00030136,2]
[311047047,1704889847741,-895.28,0.00030136,2]
[311047049,1704889847753,-500.0,0.00030136,2]
[311047051,1704889847762,-1577.56,0.00030136,2]
[311047053,1704889847772,-386.09849957,0.00030136,2]
[311047055,1704889847782,-1019.82,0.00030136,2]
[311047057,1704889847793,-727.88,0.00030136,2]
[311047059,1704889847802,-506.31,0.00030136,2]
[311047061,1704889847811,-1464.15,0.00030136,2]
[311047063,1704889847820,-500.0,0.00030136,2]
[311047065,1704889847830,-500.0,0.00030136,2]
[311047067,1704889847839,-500.0,0.00030136,2]
[311047069,1704889847849,-3250.68,0.00030136,2]
[311047071,1704889847858,-1000.0,0.00030136,2]
[311047073,1704889847868,-500.0,0.00030136,2]
[311047075,1704889847880,-500.0,0.00030136,2]
[311047077,1704889847889,-500.0,0.00030136,2]
[311047079,1704889847899,-500.0,0.00030136,2]
[311047081,1704889847908,-500.0,0.00030136,2]
[311047083,1704889847919,-913.84,0.00030136,2]
[311047085,1704889847928,-856.61,0.00030136,2]
[311047087,1704889847937,-500.0,0.00030136,2]
[311047089,1704889847948,-500.0,0.00030136,2]
[311047091,1704889847957,-500.0,0.00030136,2]
[311047093,1704889847966,-909.57,0.00030136,2]
[311047095,1704889847974,-602.22,0.00030136,2]
[311047097,1704889847984,-1140.97,0.00030136,2]
[311047099,1704889847992,-500.0,0.00030136,2]
[311047101,1704889848002,-1267.63,0.00030136,2]
[311047104,1704889848011,-1134.59,0.00030136,2]
[311047106,1704889848020,-590.83,0.00030136,2]
[311047108,1704889848033,-500.0,0.00030136,2]
[311047110,1704889848043,-500.0,0.00030136,2]
[311047112,1704889848052,-695.54,0.00030136,2]
[311047114,1704889848062,-160.7026218,0.00030136,2]
[311047116,1704889848071,-500.0,0.00030136,2]
[311047118,1704889848081,-500.0,0.00030136,2]
[311047120,1704889848091,-500.0,0.00030136,2]
[311047122,1704889848100,-1056.49,0.00030136,2]
[311047124,1704889848109,-544.7992603,0.00030136,2]
[311047126,1704889848119,-500.0,0.00030136,2]
[311047128,1704889848130,-500.0,0.00030136,2]
[311047130,1704889848139,-1286.63,0.00030136,2]
[311047132,1704889848149,-875.47,0.00030136,2]
[311047135,1704889848158,-500.0,0.00030136,2]
[311047137,1704889848167,-842.77,0.00030136,2]
[311047139,1704889848177,-500.0,0.00030136,2]
[311047141,1704889848186,-500.0,0.00030136,2]
[311047143,1704889848195,-1089.56,0.00030136,2]
[311047145,1704889848205,-1790.92,0.00030136,2]
[311047147,1704889848214,-1125.79,0.00030136,2]
[311047149,1704889848223,-500.0,0.00030136,2]
[311047151,1704889848232,-820.12,0.00030136,2]
[311047153,1704889848241,-500.0,0.00030136,2]
[311047155,1704889848252,-500.0,0.00030136,2]
[311047157,1704889848261,-500.0,0.00030136,2]
[311047159,1704889848270,-690.21,0.00030136,2]
[311047161,1704889848279,-1130.12,0.00030136,2]
[311047163,1704889848289,-500.0,0.00030136,2]
[311047165,1704889848298,-623.61,0.00030136,2]
[311047167,1704889848307,-500.0,0.00030136,2]
[311047169,1704889848316,-563.95,0.00030136,2]
[311047171,1704889848326,-1140.28,0.00030136,2]
[311047173,1704889848335,-1565.58,0.00030136,2]
[311047175,1704889848345,-326.36942014,0.00030136,2]
[311047177,1704889848355,-500.0,0.00030136,2]
[311047179,1704889848364,-562.08,0.00030136,2]
[311047181,1704889848375,-500.0,0.00030136,2]
[311047183,1704889848387,-816.86,0.00030136,2]
[311047185,1704889848397,-581.91,0.00030136,2]
[311047187,1704889848407,-1119.94,0.00030136,2]
[311047189,1704889848416,-500.0,0.00030136,2]
[311047191,1704889848425,-958.87,0.00030136,2]
[311047193,1704889848434,-500.0,0.00030136,2]
[311047195,1704889848443,-500.0,0.00030136,2]
[311047197,1704889848453,-500.0,0.00030136,2]
[311047199,1704889848462,-504.54569201,0.00030136,2]
[311047201,1704889848471,-1407.81,0.00030136,2]
[311047203,1704889848480,-1581.48,0.00030136,2]
[311047205,1704889848489,-1320.63,0.00030136,2]
[311047207,1704889848499,-500.0,0.00030136,2]
[311047209,1704889848508,-867.86,0.00030136,2]
[311047211,1704889848518,-746.81,0.00030136,2]
[311047214,1704889848527,-713.77,0.00030136,2]
[311047216,1704889848537,-500.0,0.00030136,2]
[311047217,1704889848545,-500.0,0.00030136,2]
[311047219,1704889848555,-500.0,0.00030136,2]
[311047221,1704889848566,-500.0,0.00030136,2]
[311047224,1704889848576,-819.53,0.00030136,2]
[311047226,1704889848585,-500.0,0.00030136,2]
[311047228,1704889848594,-508.92535526,0.00030136,2]
[311047230,1704889848603,-224.48088046,0.00030136,2]
[311047232,1704889848612,-500.0,0.00030136,2]
[311047234,1704889848621,-500.0,0.00030136,2]
[311047236,1704889848635,-500.0,0.00030136,2]
[311047238,1704889848645,-500.0,0.00030136,2]
[311047240,1704889848655,-1128.54,0.00030136,2]
[311047242,1704889848665,-500.0,0.00030136,2]
[311047244,1704889848674,-504.51469465,0.00030136,2]
[311047246,1704889848683,-1656.38,0.00030136,2]
[311047248,1704889848691,-500.0,0.00030136,2]
[311047250,1704889848700,-500.0,0.00030136,2]
[311047252,1704889848710,-500.0,0.00030136,2]
[311047254,1704889848718,-1094.14,0.00030136,2]
[311047256,1704889848727,-500.0,0.00030136,2]
[311047258,1704889848737,-1240.79,0.00030136,2]
[311047260,1704889848746,-500.0,0.00030136,2]
[311047262,1704889848756,-500.0,0.00030136,2]
[311047264,1704889848766,-523.39,0.00030136,2]
[311047266,1704889848775,-653.68,0.00030136,2]
[311047268,1704889848784,-500.0,0.00030136,2]
[311047270,1704889848793,-500.0,0.00030136,2]
[311047272,1704889848802,-500.0,0.00030136,2]
[311047274,1704889848811,-500.0,0.00030136,2]
[311047276,1704889848821,-500.0,0.00030136,2]
[311047278,1704889848830,-500.0,0.00030136,2]
[311047280,1704889848839,-500.0,0.00030136,2]
[311047282,1704889848848,-500.0,0.00030136,2]
[311047284,1704889848859,-2052.57,0.00030136,2]
[311047286,1704889848868,-988.35,0.00030136,2]
[311047288,1704889848881,-500.0,0.00030136,2]
[311047290,1704889848890,-1584.36,0.00030136,2]
[311047292,1704889848900,-5014.12,0.00030136,2]
[311047294,1704889848910,-1899.18,0.00030136,2]
[311047296,1704889848919,-1029.31,0.00030136,2]
[311047298,1704889848928,-569.69,0.00030136,2]
[311047300,1704889848938,-1767.62,0.00030136,2]
[311047302,1704889848947,-500.0,0.00030136,2]
[311047304,1704889848957,-720.85,0.00030136,2]
[311047306,1704889848966,-548.17,0.00030136,2]
[311047308,1704889848975,-500.0,0.00030136,2]
[311047310,1704889848984,-1269.38,0.00030136,2]
[311047312,1704889848993,-500.0,0.00030136,2]
[311047314,1704889849002,-500.0,0.00030136,2]
[311047316,1704889849012,-500.0,0.00030136,2]
[311047318,1704889849021,-152.43997122,0.00030136,2]
[311047320,1704889849031,-1861.28,0.00030136,2]
[311047322,1704889849041,-500.0,0.00030136,2]
[311047324,1704889849050,-500.0,0.00030136,2]
[311047326,1704889849060,-2772.99,0.00030136,2]
[311047328,1704889849069,-1398.51,0.00030136,2]
[311047330,1704889849079,-501.62,0.00030136,2]
[311047332,1704889849089,-500.0,0.00030136,2]
[311047334,1704889849098,-1435.01,0.00030136,2]
[311047336,1704889849107,-497.75676775,0.00030136,2]
[311047338,1704889849116,-1211.96,0.00030136,2]
[311047340,1704889849127,-1059.41,0.00030136,2]
[311047342,1704889849136,-500.0,0.00030136,2]
[311047344,1704889849145,-1482.89,0.00030136,2]
[311047346,1704889849154,-500.0,0.00030136,2]
[311047348,1704889849163,-500.0,0.00030136,2]
[311047350,1704889849173,-695.19,0.00030136,2]
[311047352,1704889849182,-1046.11,0.00030136,2]
[311047354,1704889849191,-1778.97,0.00030136,2]
[311047356,1704889849200,-773.9,0.00030136,2]
[311047358,1704889849210,-500.0,0.00030136,2]
[311047360,1704889849219,-832.16,0.00030136,2]
[311047362,1704889849228,-500.0,0.00030136,2]
[311047364,1704889849237,-500.0,0.00030136,2]
[311047366,1704889849247,-614.88,0.00030136,2]
[311047368,1704889849256,-5888.52,0.00030136,2]
[311047370,1704889849266,-763.1,0.00030136,2]
[311047372,1704889849275,-654.36,0.00030136,2]
[311047374,1704889849284,-635.0827926,0.00030136,2]
[311047376,1704889849293,-500.0,0.00030136,2]
[311047378,1704889849302,-1152.96,0.00030136,2]
[311047381,1704889849312,-1741.64,0.00030136,2]
[311047383,1704889849321,-1510.47,0.00030136,2]
[311047385,1704889849330,-887.3,0.00030136,2]
[311047387,1704889849339,-500.0,0.00030136,2]
[311047389,1704889849348,-772.26,0.00030136,2]
[311047391,1704889849358,-500.0,0.00030136,2]
[311047393,1704889849367,-5991.21,0.00030136,2]
[311047394,1704889849380,-937.08,0.00030136,2]
[311047397,1704889849391,-500.0,0.00030136,2]
[311047398,1704889849400,-4646.78,0.00030136,2]
[311047401,1704889849410,-500.0,0.00030136,2]
[311047403,1704889849419,-500.0,0.00030136,2]
[311047405,1704889849428,-554.31,0.00030136,2]
[311047407,1704889849438,-237.59,0.00030136,2]
[311047409,1704889849447,-841.86,0.00030136,2]
[311047411,1704889849456,-500.0,0.00030136,2]
[311047413,1704889849466,-500.0,0.00030136,2]
[311047415,1704889849475,-500.0,0.00030136,2]
[311047417,1704889849485,-500.0,0.00030136,2]
[311047419,1704889849494,-500.0,0.00030136,2]
[311047421,1704889849503,-1185.37,0.00030136,2]
[311047423,1704889849513,-500.0,0.00030136,2]
[311047425,1704889849522,-2312.73,0.00030136,2]
[311047427,1704889849531,-500.0,0.00030136,2]
[311047429,1704889849540,-3264.24,0.00030136,2]
[311047431,1704889849549,-3528.22,0.00030136,2]
[311047433,1704889849558,-500.0,0.00030136,2]
[311047435,1704889849568,-500.0,0.00030136,2]
[311047437,1704889849578,-500.0,0.00030136,2]
[311047439,1704889849587,-870.08,0.00030136,2]
[311047441,1704889849596,-500.0,0.00030136,2]
[311047443,1704889849605,-1578.79,0.00030136,2]
[311047445,1704889849615,-500.0,0.00030136,2]
[311047447,1704889849624,-500.0,0.00030136,2]
[311047449,1704889849639,-500.0,0.00030136,2]
[311047451,1704889849648,-728.3,0.00030136,2]
[311047453,1704889849658,-1697.0,0.00030136,2]
[311047455,1704889849669,-500.0,0.00030136,2]
[311047457,1704889849678,-500.0,0.00030136,2]
[311047459,1704889849687,-1773.5,0.00030136,2]
[311047461,1704889849696,-500.0,0.00030136,2]
[311047463,1704889849705,-3026.72,0.00030136,2]
[311047465,1704889849715,-1285.29,0.00030136,2]
[311047467,1704889849724,-716.54,0.00030136,2]
[311047469,1704889849734,-1101.65,0.00030136,2]
[311047471,1704889849744,-500.0,0.00030136,2]
[311047473,1704889849754,-1411.57,0.00030136,2]
[311047475,1704889849764,-500.0,0.00030136,2]
[311047477,1704889849773,-500.0,0.00030136,2]
[311047479,1704889849783,-500.0,0.00030136,2]
[311047481,1704889849792,-624.94,0.00030136,2]
[311047483,1704889849804,-500.0,0.00030136,2]
[311047485,1704889849814,-500.0,0.00030136,2]
[311047487,1704889849824,-6173.33,0.00030136,2]
[311047489,1704889849836,-2083.83,0.00030136,2]
[311047491,1704889849847,-1324.68,0.00030136,2]
[311047492,1704889849857,-500.0,0.00030136,2]
[311047493,1704889849868,-4303.97,0.00030136,2]
[311047494,1704889849882,-500.0,0.00030136,2]
[311047495,1704889849894,-500.0,0.00030136,2]
[311047496,1704889849904,-2350.26,0.00030136,2]
[311047497,1704889849915,-500.0,0.00030136,2]
[311047498,1704889849926,-564.55,0.00030136,2]
[311047499,1704889849935,-732.88,0.00030136,2]
[311047500,1704889849945,-500.0,0.00030136,2]
[311047502,1704889849954,-500.0,0.00030136,2]
[311047504,1704889849967,-726.0,0.00030136,2]
[311047506,1704889849977,-1645.44,0.00030136,2]
[311047508,1704889849986,-1153.48,0.00030136,2]
[311047510,1704889849995,-1150.36,0.00030136,2]
[311047512,1704889850005,-500.0,0.00030136,2]
[311047513,1704889850014,-3451.98,0.00030136,2]
[311047514,1704889850024,-1155.38,0.00030136,2]
[311047517,1704889850034,-500.0,0.00030136,2]
[311047518,1704889850044,-938.72,0.00030136,2]
[311047520,1704889850054,-7883.65,0.00030136,2]
[311047522,1704889850064,-656.73,0.00030136,2]
[311047523,1704889850074,-768.72,0.00030136,2]
[311047526,1704889850084,-500.0,0.00030136,2]
[311047528,1704889850095,-500.0,0.00030136,2]
[311047530,1704889850105,-500.0,0.00030136,2]
[311047531,1704889850114,-500.0,0.00030136,2]
[311047533,1704889850125,-1000.0,0.00030136,2]
[311047535,1704889850137,-3415.17,0.00030136,2]
[311047537,1704889850146,-856.12,0.00030136,2]
[311047539,1704889850156,-648.04,0.00030136,2]
[311047541,1704889850165,-500.0,0.00030136,2]
[311047543,1704889850175,-503.14917466,0.00030136,2]
[311047545,1704889850185,-2014.22,0.00030136,2]
[311047547,1704889850195,-1526.49,0.00030136,2]
[311047549,1704889850205,-7413.77,0.00030136,2]
[311047551,1704889850216,-528.39,0.00030136,2]
[311047553,1704889850225,-500.0,0.00030136,2]
[311047555,1704889850235,-500.0,0.00030136,2]
[311047557,1704889850244,-500.0,0.00030136,2]
[311047560,1704889850254,-566.00338462,0.00030136,2]
[311047562,1704889850264,-633.49,0.00030136,2]
[311047564,1704889850273,-11516.65,0.00030136,2]
[311047566,1704889850283,-1595.22,0.00030136,2]
[311047568,1704889850292,-524.73,0.00030136,2]
[311047569,1704889850301,-500.0,0.00030136,2]
[311047570,1704889850311,-589.39,0.00030136,2]
[311047571,1704889850320,-805.21,0.00030136,2]
[311047572,1704889850329,-500.0,0.00030136,2]
[311047573,1704889850340,-500.0,0.00030136,2]
[311047574,1704889850350,-500.0,0.00030136,2]
[311047575,1704889850359,-8149.55,0.00030136,2]
[311047576,1704889850369,-11416.58,0.00030136,2]
[311047577,1704889850382,-1280.71,0.00030136,2]
[311047578,1704889850392,-500.0,0.00030136,2]
[311047579,1704889850403,-500.0,0.00030136,2]
[311047580,1704889850413,-500.0,0.00030136,2]
[311047581,1704889850423,-500.0,0.00030136,2]
[311047582,1704889850433,-500.0,0.00030136,2]
[311047583,1704889850444,-500.0,0.00030136,2]
[311047584,1704889850454,-500.0,0.00030136,2]
[311047585,1704889850465,-500.0,0.00030136,2]